Cogmind - Beta 13 @@@ ROGUE MODE // 2024.04.08 @ 02:45:21 Player: Toa of Guts Result: Self-destructed Performance ------------- Evolutions (2) 1000 Regions Visited (4) 800 Robots Destroyed (26) 130 Value Destroyed (934) 934 Prototype IDs (0) 0 Alien Tech Used (0) 0 Bonus (0) 0 TOTAL SCORE: 2864 Bonus ------- None Cogmind --------- Core Integrity 259/550 Matter 277/300 Energy 150/150 System Corruption 0% Temperature Cool (27) Movement Core (350) Ox6 Location -8/Materials Parts ------- > --- POWER (1) -------- Light Angular Momentum Engine > --- PROPULSION (3) --- Aluminum Leg > --- UTILITY (4) ------ Medium Storage Unit Improved Power Shielding > --- WEAPON (3) ------- (None) > --- INVENTORY (10) --- Improved Ion Engine Aluminum Leg Machine Analyzer Advanced Visual Processing Unit Terrain Scanner Terrain Scan Processor Mini Grenade Launcher Peak State ------------ > --- POWER ------------ Light Angular Momentum Engine > --- PROPULSION ------- Light Treads Aluminum Leg Armored Wheel > --- UTILITY ---------- Improved Heat Sink Advanced Heat Sink Medium Storage Unit Improved Power Shielding > --- WEAPON ----------- Heavy Laser Assault Rifle Heavy Assault Rifle > --- INVENTORY -------- Improved Ion Engine Aluminum Leg Aluminum Leg Wheel Machine Analyzer Advanced Visual Processing Unit Terrain Scanner Terrain Scan Processor Assault Rifle Mini Grenade Launcher [Rating: 29] Favorites ----------- Power Ion Engine Engine Ion Engine Propulsion Light Treads Treads Light Treads Leg Aluminum Leg Wheel Armored Wheel Utility Heat Sink Device Heat Sink Storage Large Storage Unit Protection Light Armor Plating Weapon Small Laser Energy Gun Small Laser Ballistic Gun Light Assault Rifle Launcher Mini Grenade Launcher Build | -11 -10 -9 -9 -8 ------- Run | Yrd Mat Mat Sto Mat Slots Evolved 4 | . . 2 . 2 Power . | . . . . . Propulsion 1 | . . 1 . . Utility 2 | . . 1 . 1 Weapon 1 | . . . . 1 Parts Attached 49 | 7 10 . 11 21 Power 3 | 1 . . 1 1 Engine 3 | 1 . . 1 1 Core . | . . . . . Reactor . | . . . . . Propulsion 17 | 2 5 . 3 7 Treads 5 | . 2 . 2 1 Leg 8 | . 3 . 1 4 Wheel 4 | 2 . . . 2 Hover . | . . . . . Flight . | . . . . . Utility 11 | 1 3 . 2 5 Device 4 | . 1 . . 3 Storage 3 | 1 1 . . 1 Processor . | . . . . . Hackware . | . . . . . Protection 4 | . 1 . 2 1 Artifact . | . . . . . Weapon 18 | 3 2 . 5 8 Energy Gun 6 | 1 1 . 2 2 Energy Cannon . | . . . . . Ballistic Gun 11 | 2 1 . 2 6 Ballistic Cannon . | . . . . . Launcher 1 | . . . 1 . Special Weapon . | . . . . . Impact Weapon . | . . . . . Slashing Weapon . | . . . . . Piercing Weapon . | . . . . . Special Melee Weapon . | . . . . . Unidentified Prototypes . | . . . . . Parts Lost 18 | . 1 . 3 14 Power 1 | . . . 1 . Propulsion 5 | . . . . 5 Utility 5 | . 1 . 1 3 Weapon 7 | . . . 1 6 Highest Loss Streak 10 | . 1 . 3 10 To Critical Strikes . | . . . . . Average Slot Usage (%) 89 | . 92 77 95 90 Engine 10 | . 14 11 10 5 Treads 19 | . 8 22 28 10 Leg 5 | . 12 . 3 9 Wheel 2 | . 6 . . 6 Device 11 | . 2 11 11 19 Storage 11 | . 14 11 11 9 Protection 4 | . 5 . 8 3 Energy Gun 11 | . 14 11 12 8 Ballistic Gun 12 | . 14 11 9 17 Naked Turns . | . . . . . Heaviest Build 33 | 13 31 28 33 32 Greatest Support 60 | 20 40 40 60 60 Greatest Overweight (x) 9 | . 1 . . 9 Average Overweight (x) . | . . . . 1 Largest Inventory Capacity 15 | 8 15 15 15 15 Average Capacity 13 | 6 12 15 15 10 Most Carried 15 | 6 14 13 15 13 Average Carried 11 | 3 9 12 13 9 Final Capacity 15 | 8 15 15 15 10 Final Carried 14 | 6 14 12 13 7 Class Distribution -------------------- 52% | Mutant 26% | Scavenger-Mutant 14% | Scavenger-Gunner 6% | Scavenger-Tank Dominant Class ---------------- Mutant | -10/Materials Mutant | -9/Materials Scavenger-Mutant | -9/Storage Scavenger-Gunner | -8/Materials Resources | -11 -10 -9 -9 -8 ----------- Run | Yrd Mat Mat Sto Mat Matter Collected 883 | 270 62 . 211 340 Remotely . | . . . . . Salvage Created 1055 | . 169 . 379 507 Parts 70 | . 14 . 31 25 Haulers Intercepted . | . . . . . Recyclers Shooed 1 | . . . 1 . Parts Field Recycled . | . . . . . Retrieved Matter . | . . . . . Parts Self-Destructed . | . . . . . Prevented . | . . . . . Kills | -11 -10 -9 -9 -8 ------- Run | Yrd Mat Mat Sto Mat Combat Hostiles Destroyed 23 | . 5 . 8 10 Guns 20 | . 4 . 6 10 AOE 3 | . 1 . 2 . Classes Destroyed 6 | . 3 . 3 . Builder 1 | . 1 . . . Watcher 2 | . . . 2 . Swarmer 3 | . 3 . . . Grunt 14 | . 2 . 4 8 Brawler 1 | . . . 1 . Sentry 5 | . . . 3 2 Best Kill Streak 3 | . 3 . 2 3 Combat Bots Only 3 | . 3 . 2 3 Max Kills in Single Turn 2 | . 2 . 2 1 Gunslinging . | . . . . . Exploded 2 | . 1 . 2 . Melee . | . . . . . Uniques/NPCs Destroyed . | . . . . . Combat | -11 -10 -9 -9 -8 -------- Run | Yrd Mat Mat Sto Mat Hostile Shots Fired 243 | . 26 . 98 119 Missed 59 | . 5 . 28 26 Damage Taken 2765 | . 293 . 941 1531 Core 453 | . 38 . 124 291 Absorbed by Shields . | . . . . . Redirected to Shielding 63 | . . . . 63 Core Remaining (%) 84 | 100 84 . 69 . Volleys Fired 85 | . 17 . 26 42 Largest 3 | . 2 . 2 3 Hottest 112 | . 60 . 80 112 Shots Fired 196 | . 34 . 50 112 Gun 194 | . 34 . 48 112 Cannon . | . . . . . Launcher 2 | . . . 2 . Special . | . . . . . Kinetic 108 | . 17 . 17 74 Thermal 69 | . . . 31 38 Explosive 2 | . . . 2 . Electromagnetic 17 | . 17 . . . Robot Hit Streak 13 | . 7 . 13 13 Robot Miss Streak 3 | . 2 . 3 3 Penetration Max . | . . . . . Secondary Targets 1 | . 1 . . . Max Gunslinging Chain 1 | . 1 . . . Shots Hit Robots 134 | . 20 . 34 80 Core Hits 56 | . 10 . 19 27 Critical Kills 1 | . . . . 1 Critical Parts Destroyed . | . . . . . Critical Strikes 1 | . . . . 1 Destroy 1 | . . . . 1 Melee Attacks . | . . . . . Impact . | . . . . . Slashing . | . . . . . Piercing . | . . . . . Sneak Attacks . | . . . . . Combat Hostiles . | . . . . . Follow-up Attacks . | . . . . . Damage Inflicted 2095 | . 369 . 583 1143 Guns 1784 | . 231 . 410 1143 Cannons . | . . . . . Explosions 311 | . 138 . 173 . Melee . | . . . . . Ramming . | . . . . . Kinetic 915 | . 80 . 159 676 Thermal 856 | . 138 . 251 467 Explosive 173 | . . . 173 . Electromagnetic 151 | . 151 . . . Impact . | . . . . . Slashing . | . . . . . Piercing . | . . . . . Highest Corruption . | . . . . . Average Corruption . | . . . . . Corruption Purged . | . . . . . Corruption Blocked . | . . . . . Overload Shots . | . . . . . Overflow Damage . | . . . . . Projectiles . | . . . . . Explosions . | . . . . . Melee . | . . . . . Knockbacks . | . . . . . Impact . | . . . . . Kinetic . | . . . . . Secondary . | . . . . . Self-Inflicted Damage 65 | . 56 . 9 . Shots 2 | . 1 . 1 . Rammed . | . . . . . Targets Rammed . | . . . . . Kicked . | . . . . . Crushed . | . . . . . Highest Temperature 195 | . 195 . 5 31 Average Temperature 44 | . 80 . 3 6 Received Heat Transfer 1266 | . 81 . 447 738 Siege Activations . | . . . . . Robots Corrupted . | . . . . . Combat Hostiles . | . . . . . Parts Fried . | . . . . . Impact Corruptions . | . . . . . Robots Melted . | . . . . . Combat Hostiles . | . . . . . Parts Melted 1 | . . . . 1 Heat Transferred 1615 | . 100 . 575 940 Parts Sabotaged . | . . . . . Parts Stolen . | . . . . . Parts Stripped . | . . . . . Power Chain Reactions 1 | . 1 . . . Alert | -11 -10 -9 -9 -8 ------- Run | Yrd Mat Mat Sto Mat Peak Influence 257 | . 132 70 251 257 Initial 55 | . . 55 . 14 Average 81 | . 90 51 101 87 Maximum Alert Level 1 | . . . 1 1 Low Security (%) 91 | 100 100 100 77 93 Level 1 8 | . . . 22 6 Level 2 . | . . . . . Level 3 . | . . . . . Level 4 . | . . . . . Level 5 . | . . . . . High Security . | . . . . . Max Security . | . . . . . Squads Dispatched 2 | . . . 1 1 Investigation 1 | . . . . 1 Extermination . | . . . . . Reinforcement 1 | . . . 1 . Assault . | . . . . . Garrison . | . . . . . Intercept . | . . . . . Searches Triggered . | . . . . . Construction Impeded . | . . . . . Haulers Reinforced . | . . . . . Active Scanning Responses . | . . . . . Cargo Convoy Interrupts . | . . . . . Stealth | -11 -10 -9 -9 -8 --------- Run | Yrd Mat Mat Sto Mat Distress Signals 6 | . . 1 3 2 Communications Jammed . | . . . . . Distress Signals . | . . . . . Times Spotted 45 | . 4 1 18 22 Peak Tracking Total 7 | . 3 2 5 7 Tactical Retreats 3 | . . 1 . 2 Traps | -11 -10 -9 -9 -8 ------- Run | Yrd Mat Mat Sto Mat Traps Triggered 2 | . . . 1 1 Indirectly . | . . . . . Trap Hack Attempts . | . . . . . Triggered . | . . . . . Disarmed . | . . . . . Reprogrammed . | . . . . . Reused . | . . . . . Traps Extracted . | . . . . . Installed . | . . . . . Triggered . | . . . . . Machines | -11 -10 -9 -9 -8 ---------- Run | Yrd Mat Mat Sto Mat Machines Disabled 1 | . . . . 1 Max in Single Turn 1 | . . . . 1 Machines Repaired . | . . . . . Machines Dismantled . | . . . . . Machines Sabotaged . | . . . . . Overloaded Fab Kills . | . . . . . Hacking | -11 -10 -9 -9 -8 --------- Run | Yrd Mat Mat Sto Mat Machines Accessed 1 | . . . 1 . Terminals 1 | . . . 1 . Fabricators . | . . . . . Repair Stations . | . . . . . Recycling Units . | . . . . . Scanalyzers . | . . . . . Garrison Access . | . . . . . Total Hacks 1 | . . . 1 . Successful 1 | . . . 1 . Failed . | . . . . . Catastrophic . | . . . . . Database Lockouts . | . . . . . Manual . | . . . . . Terminals 1 | . . . 1 . Fabricators . | . . . . . Repair Stations . | . . . . . Recycling Units . | . . . . . Scanalyzers . | . . . . . Garrison Access . | . . . . . Terminal Hacks 1 | . . . 1 . Open Door 1 | . . . 1 . Fabricator Hacks . | . . . . . Repair Station Hacks . | . . . . . Recycling Unit Hacks . | . . . . . Scanalyzer . | . . . . . Garrison Access Hacks . | . . . . . Unauthorized Hacks . | . . . . . Terminals . | . . . . . Fabricators . | . . . . . Repair Stations . | . . . . . Recycling Units . | . . . . . Scanalyzers . | . . . . . Garrison Access . | . . . . . Data Cores Recovered . | . . . . . Used . | . . . . . Hacking Detections 1 | . . . 1 . Full Trace Events . | . . . . . Feedback Events . | . . . . . Feedback Blocked . | . . . . . Robot Schematics Acquired . | . . . . . Robots Built . | . . . . . Authchips . | . . . . . Time . | . . . . . Total Robot Build Rating . | . . . . . Part Schematics Acquired . | . . . . . Parts Built . | . . . . . Authchips . | . . . . . Time . | . . . . . Total Part Build Rating . | . . . . . Parts Repaired . | . . . . . Time . | . . . . . Parts Recycled . | . . . . . Recycled Matter . | . . . . . Retrieved Matter . | . . . . . Retrieved Components . | . . . . . Parts Scanalyzed . | . . . . . Part Schematics Acquired . | . . . . . Parts Damaged . | . . . . . Bothacking | -11 -10 -9 -9 -8 ------------ Run | Yrd Mat Mat Sto Mat Used RIF Installer . | . . . . . Robots Hacked . | . . . . . Non-combat . | . . . . . Combat . | . . . . . Robot Hacks Applied . | . . . . . Relay Couplers Released . | . . . . . Fabnet Peak Effective % . | . . . . . Robots Rewired . | . . . . . Allies Hacked . | . . . . . Hacks Repelled . | . . . . . Allies | -11 -10 -9 -9 -8 -------- Run | Yrd Mat Mat Sto Mat Total Allies . | . . . . . Largest Group . | . . . . . Highest-Rated Group . | . . . . . Highest-Rated Ally . | . . . . . Total Orders . | . . . . . Ally Attacks . | . . . . . Total Damage . | . . . . . Kills . | . . . . . Allies Corrupted . | . . . . . Allies Melted . | . . . . . Intel | -11 -10 -9 -9 -8 ------- Run | Yrd Mat Mat Sto Mat Robot Analysis Total . | . . . . . Derelict Logs Recovered . | . . . . . Drone Launches . | . . . . . Drone Recoveries . | . . . . . Exploration | -11 -10 -9 -9 -8 ------------- Run | Yrd Mat Mat Sto Mat Turns Passed 2152 | 59 384 521 685 503 Spaces Moved 808 | 54 220 32 267 235 Core 2 | 1 . . . 1 Treads 408 | . 69 32 267 40 Legs 77 | . 69 . . 8 Wheels 321 | 53 82 . . 186 Hover . | . . . . . Flight . | . . . . . Fastest Speed 50 | 50 80 160 160 105 Average Speed 136 | 79 128 160 160 127 Slowest Speed 500 | 80 190 160 160 500 Overloaded Moves . | . . . . . Propulsion Burnouts . | . . . . . Robots Hopped . | . . . . . Cave-ins Triggered . | . . . . . Exploration Rate (%) 24 | 4 40 3 53 23 Regions Visited 4 Branch Regions 1 Pre-discovered Areas . | . . . . . Known Exits Taken . | . . . . . Unknown Exits Taken 4 | 1 1 1 1 . Scrap Searched . | . . . . . Spaces Dug . | . . . . . Terrain Destroyed 18 | . 2 . 16 . Melee . | . . . . . Projectile . | . . . . . AOE 18 | . 2 . 16 . Terrain Rammed . | . . . . . Walls Destroyed . | . . . . . Machines Disabled . | . . . . . Actions | -11 -10 -9 -9 -8 --------- Run | Yrd Mat Mat Sto Mat Total 1685 | 66 285 503 477 354 Wait 696 | . 34 470 158 34 Move 804 | 53 219 31 266 235 Hop . | . . . . . Pick Up 26 | 6 5 . 7 8 Fast Attach 18 | 6 2 . 3 7 Attach 10 | . . . 2 8 Detach 1 | . . . 1 . Swap 21 | 1 8 . 6 6 Drop 24 | . . 2 8 14 Fire 85 | . 17 . 26 42 Melee . | . . . . . Ram . | . . . . . Kick . | . . . . . Crush . | . . . . . Escape Stasis . | . . . . . Rewire . | . . . . . Trap . | . . . . . Miscellaneous . | . . . . . Route ------- -11/Scrapyard -10/Materials -9/Materials -9/Storage -8/Materials History --------- Turn | Location | Event 26 | -11/Scrapyard | Discovered new exit (range 14) 60 | -11/Scrapyard | Entered Materials 321 | -10/Materials | Build established: Mutant 394 | -10/Materials | Discovered new exit (range 13) 444 | -10/Materials | Entered another Materials area 444 | -9/Materials | Evolved 2 slots: Propulsion x1, Utility x1 457 | -9/Materials | Discovered new exit (range 11) 965 | -9/Materials | Entered Storage 1413 | -9/Storage | Build established: Scavenger-Mutant 1642 | -9/Storage | Discovered new exit (range 6) 1650 | -9/Storage | Entered Materials 1650 | -8/Materials | Evolved 2 slots: Utility x1, Weapon x1 1666 | -8/Materials | Lost 3 parts (1p1u1w) 1948 | -8/Materials | Build established: Scavenger-Gunner 2153 | -8/Materials | Self-destructed Last Messages --------------- 02104_ Acquired 18 matter. 02115_ Hvy. Assault Rifle destroyed. 02115_ Critical hit (Burn: +37). 02117_ Adv. Heat Sink destroyed. 02118_ Assault Rifle destroyed. 02119_ G-47 Trooper destroyed. 02121_ R-06 Scavenger collects Aluminum Leg. 02122_ Lgt. Treads destroyed. 02125_ Arm. Wheel destroyed. 02132_ Aluminum Leg destroyed. 02134_ R-06 Scavenger collects Lgt. Treads. 02139_ R-06 Scavenger collects Heat Sink. 02139_ R-06 Scavenger destroyed. 02142_ R-06 Scavenger collects Lgt. Treads. 02145_ R-06 Scavenger collects Particle Gun. 02147_ Critical hit (Burn: +37). 02148_ Wheel destroyed. 02151_ Imp. Heat Sink destroyed. 02151_ Assault Rifle destroyed. 02152_ Hvy. Laser destroyed. Map ----- +----------------------------------------------------+ | | | | | | | | | | | | | | | | | | | | | | | ????????????????????????????##########???????????? | | ????????????????????????????# #???????????? | | ????????????????????????????# #???????????? | | ??????????????????????####### #???????????? | | ????????????????####### ! # ! ############? | | ????????????? [ # ! / + #? | | ????????????? %+! !/ ## ####### #? | | ????????????? ! #! !/ ## #?????# ## | | ?????????????######+### = *# ## #?????# | | ?????????????# "%" ##=!%## ## #?????# | | ?????????????# T " ##g!=#####+###+## #?????# | | ?????????????# ## #???# #?? #?????# | | ?????????????# ##rg #??## ### #?????# | | ?????????????# ##lg #??# +?????# | | ?????????????# "" %/Y=@ #??# ####### | | ?????????????# """ ## #??# | | ????????????? """ ## #??# ############# | | ?????????????# ## #??# # #?# | | ?????????????###+##+#### #??# # ! #?# | | ?????????????????? ???# #### # #?# | | ????????????????? ????#g %# """ #?# | | ???????????????? ??### +[ """"" #?# | | ?????????????? =#! """"" #?# | | ????????????# ################# # """"" #?# | | ????????????? ????????????????# # """ #?# | | ???????????? ?????????????????# ###########?# | | ????????????? ??????????????????# #???????????# | | ????????????????????????????????# #???????????# | | ????????????????????????????????# #?########### | | ????????????????????????????????# | | ????????????????????????????????# | | ????????????????????????????????? "T" | | ????????????????????????????????? ? | | ????????????????????????????????? ?"" """ | | ?????????????????????????????????! ?????""" | | ????????????????????????????????? ?????""" | | ????????????????????????????????? ?????""" | | ????????????????????????????????? ????? | | ???????????????????????????????????????? ? | +----------------------------------------------------+ Best States ------------- Heat Dissipation 64 Energy Generation 18 Energy Capacity 250 Matter Stores 300 Matter Capacity 300 Sight Range 16 Terrain Scan Density 10 Armor Coverage 150 Power Shielding 66 Evasion (%) 55 Recoil Reduction 3 Item Schematics ----------------- None Robot Schematics ------------------ None Fabricated ------------ Nothing Alien Tech Used ----------------- None Achievements -------------- None Challenges ------------ None Game ------ Seed DiametricStormMagmablaster Manual? 0 Play Time 00:20:10 Cumulative 86.4 hours Start 2024.04.08 @ 02:25:47 End 2024.04.08 @ 02:45:21 Sessions 1 Manual Loads 0 Difficulty Rogue Special Mode None Game No. 62 Rogue 62 Adventurer 0 Explorer 0 Win Type - Total 0 Types 0/0/0/0/0/0/0/0/0 Lore% 32 Gallery% 45 Achievement% 28 Wizard Run 0 Options --------- Layout 0 ASCII 0 Keyboard 0 Movement Mouse Keybinds 0 Fullscreen 1 Font 24/X11 Map View 76x50 Zoom Use 0% Tactical HUD 1 Map Filters NONE Filters NONE Steam 1 RUN: 94ee0602-a687-4c93-93f3-af918d1c7360